bitfinex-derivatives/quotes_BTCF0:USTF0_20250902
["timestamp","ask_amount","ask_price","bid_price","bid_amount"]
[1756835380851,1.84372668,111010.0,111000.0,0.11309885]
[1756835381359,1.91052136,111010.0,111000.0,0.11309885]
[1756835381556,1.91111572,111010.0,111000.0,0.11309885]
[1756835381751,1.92735374,111010.0,110970.0,0.04371559]
[1756835381950,0.36858287,110980.0,110970.0,0.37712559]
[1756835382155,0.36858287,110980.0,110970.0,0.41424559]
[1756835382156,1.22573817,110980.0,110970.0,0.41424559]
[1756835382652,1.22573817,110980.0,110970.0,0.37712559]
[1756835382859,1.22569817,110980.0,110970.0,0.37712559]
[1756835383051,1.22569817,110980.0,110970.0,0.41624559]
[1756835383457,0.0225153,110980.0,110970.0,0.41624559]
[1756835383661,0.8571553,110980.0,110970.0,0.41624559]
[1756835383958,0.0225153,110980.0,110970.0,0.64599]
[1756835384161,0.8571553,110980.0,110970.0,0.64599]
[1756835384366,0.0225153,110980.0,110970.0,0.64599]
[1756835384555,0.90692359,110990.0,110980.0,0.08399]
[1756835384750,0.02246192,110990.0,110980.0,0.16399]
[1756835384956,0.85706192,110990.0,110980.0,0.41399]
[1756835385151,0.02246192,110990.0,110980.0,0.12687]
[1756835385457,0.02246192,110990.0,110980.0,0.16399]
[1756835385458,0.85710192,110990.0,110980.0,0.16399]
[1756835386162,0.83464,110990.0,110980.0,0.16399]
[1756835386866,0.83464,110990.0,110980.0,0.46399]
[1756835386867,0.001,110990.0,110980.0,0.46399]
[1756835387060,0.83564,110990.0,110980.0,0.46399]
[1756835387364,0.8356,110990.0,110980.0,0.46399]
[1756835387558,0.07477944,110990.0,110980.0,0.46399]
[1756835387758,0.91137944,110990.0,110980.0,0.46399]
[1756835387959,0.07677944,110990.0,110980.0,0.46399]
[1756835388258,0.001,110990.0,110980.0,0.71399]
[1756835388464,0.45364,111000.0,110990.0,0.08399]
[1756835388658,0.45364,111000.0,110990.0,0.42399]
[1756835390465,0.45364,111000.0,110990.0,0.46399]
[1756835392076,0.08969774,111010.0,111000.0,0.01452]
[1756835392366,0.92421774,111010.0,111000.0,0.09851]
[1756835392770,0.92421774,111010.0,111000.0,0.44851]
[1756835392970,0.92421774,111010.0,111000.0,0.09851]
[1756835393373,0.92421774,111010.0,111000.0,0.46851]
[1756835393878,0.92421774,111010.0,111000.0,0.09851]
[1756835394367,0.92421774,111010.0,111000.0,0.46851]
[1756835395071,0.92521774,111010.0,111000.0,0.46851]
[1756835395575,0.92421774,111010.0,111000.0,0.46851]
[1756835398064,0.92421774,111010.0,111000.0,0.09851]
[1756835399079,0.92421774,111010.0,111000.0,0.47851]
[1756835399267,0.92421774,111010.0,111000.0,0.09851]
[1756835399869,0.92421774,111010.0,111000.0,0.04687]
[1756835400073,1.38191318,111010.0,110980.0,0.08399]
[1756835400274,1.38191318,111010.0,110990.0,0.08399]
[1756835400465,0.45769544,111000.0,110990.0,0.05687]
[1756835400666,0.45769544,111000.0,110990.0,0.03346]
[1756835400867,1.38191318,111010.0,110990.0,0.03346]
[1756835401068,1.4043837,111010.0,110990.0,0.03346]
[1756835401268,1.4043837,111010.0,110990.0,0.09399]
[1756835401974,0.45769544,111000.0,110990.0,0.01]
[1756835402185,0.48017467,111000.0,110990.0,0.01]
[1756835402864,0.85675923,111000.0,110990.0,0.05687]
[1756835403069,1.31445467,111000.0,110990.0,0.05687]
[1756835403278,0.85671923,111000.0,110990.0,0.09399]
[1756835403677,0.85671923,111000.0,110990.0,0.05687]
[1756835403866,0.85671923,111000.0,110990.0,0.08399]
[1756835404072,0.83424,111000.0,110990.0,0.80168544]
[1756835404269,0.92393774,111010.0,111000.0,0.09851]
[1756835404874,0.08969774,111010.0,111000.0,0.09851]
[1756835405072,0.92393774,111010.0,111000.0,0.09851]
[1756835405579,0.92393774,111010.0,111000.0,0.44851]
[1756835405781,0.92393774,111010.0,111000.0,0.43851]
[1756835405982,0.92393774,111010.0,111000.0,0.09851]
[1756835406186,0.92393774,111010.0,111000.0,0.44851]
[1756835406381,0.92393774,111010.0,111000.0,0.09851]
[1756835406883,0.92393774,111010.0,111000.0,0.04687]
[1756835407377,0.92393774,111010.0,111000.0,0.08399]
[1756835407785,0.92393774,111010.0,111000.0,0.04687]
[1756835408576,1.38163318,111010.0,110990.0,0.0839]
[1756835408783,1.38163318,111010.0,110990.0,0.4639]
[1756835409183,0.92393774,111010.0,110990.0,0.4639]
[1756835409888,1.38163318,111010.0,110990.0,0.011]
[1756835410091,0.45769544,111000.0,110990.0,0.03437]
[1756835410384,0.45769544,111000.0,110990.0,0.011]
[1756835410980,0.70769544,111000.0,110990.0,0.012]
[1756835411181,0.73018734,111000.0,110990.0,0.012]
[1756835411775,0.2724919,111000.0,110990.0,0.011]
[1756835411978,0.48018734,111000.0,110990.0,0.03437]
[1756835412196,0.8565719,111000.0,110990.0,0.09349]
[1756835412582,0.8565719,111000.0,110990.0,0.09249]
[1756835412784,0.8565719,111000.0,110990.0,0.05668]
[1756835412785,0.8575719,111000.0,110990.0,0.05668]
[1756835412984,0.8575719,111000.0,110990.0,0.01]
[1756835413189,0.8575719,111000.0,110990.0,0.05668]
[1756835413580,0.8595719,111000.0,110990.0,0.05668]
[1756835413781,0.0254919,111000.0,110990.0,0.05668]
[1756835414082,0.003,111000.0,110990.0,0.08249]
[1756835414285,0.83708,111000.0,110990.0,0.08249]
[1756835415291,0.08969774,111010.0,111000.0,0.03581]
[1756835415488,0.94626348,111010.0,111000.0,0.0962]
[1756835416692,0.94626348,111010.0,111000.0,0.04668]
[1756835417286,0.94626348,111010.0,111000.0,0.08249]
[1756835417489,0.94826348,111010.0,111000.0,0.08249]
[1756835417690,0.11518348,111010.0,111000.0,0.0962]
[1756835417894,0.94922348,111010.0,111000.0,0.0962]
[1756835418281,0.11518348,111010.0,111000.0,0.0962]
[1756835418684,0.94818348,111010.0,111000.0,0.0962]
[1756835420495,0.94618348,111010.0,111000.0,0.0962]
[1756835425400,1.31454049,111010.0,111000.0,0.0962]
[1756835425998,0.04072314,111010.0,111000.0,1.04455701]
[1756835426203,0.87461023,111010.0,111000.0,1.04455701]
[1756835426502,0.04073023,111010.0,111000.0,0.73455701]
[1756835426901,0.04073023,111010.0,111000.0,1.04455701]
[1756835427293,0.04073023,111010.0,111000.0,0.6772]
[1756835427498,0.04073023,111010.0,111000.0,0.6782]
[1756835427699,0.04073023,111010.0,111000.0,1.04655701]
[1756835427900,0.04073023,111010.0,111000.0,1.04555701]
[1756835428104,0.04073023,111010.0,111000.0,1.04455701]
[1756835428401,0.04073023,111010.0,111000.0,0.6762]
[1756835428597,0.04073023,111010.0,111000.0,1.04455701]
[1756835428804,0.04073023,111010.0,111000.0,1.04555701]
[1756835429004,0.04073023,111010.0,111000.0,1.04655701]
[1756835429205,0.04073023,111010.0,111000.0,0.6782]
[1756835429505,0.04073023,111010.0,111000.0,1.04655701]
[1756835430402,0.04071825,111010.0,111000.0,1.04655701]
[1756835431195,0.07576923,111040.0,111030.0,0.04668]
[1756835431409,0.88349851,111040.0,111030.0,0.45084701]
[1756835431607,0.88349851,111040.0,111030.0,0.08249]
[1756835432311,0.86526498,111040.0,111030.0,0.08249]
[1756835432500,0.86826498,111040.0,111030.0,0.08249]
[1756835432896,0.03450498,111040.0,111030.0,0.79084701]
[1756835433109,0.02547573,111040.0,111030.0,1.15920402]
[1756835433306,0.003,111040.0,111030.0,1.11160999]
[1756835433913,0.003,111040.0,111030.0,1.479967]
[1756835433914,0.005,111040.0,111030.0,1.479967]
[1756835434403,0.005,111040.0,111030.0,1.11160999]
[1756835435108,0.005,111040.0,111030.0,0.74325298]
[1756835435311,0.003,111040.0,111030.0,1.11360999]
[1756835435508,0.00919617,111050.0,111030.0,1.20219872]
[1756835435710,0.85226358,111060.0,111050.0,0.01371]
[1756835436010,0.87467496,111060.0,111050.0,0.0962]
[1756835436313,0.85226358,111060.0,111050.0,0.0962]
[1756835436814,0.85226358,111060.0,111050.0,0.04668]
[1756835437409,0.85226358,111060.0,111050.0,0.08249]
[1756835437604,0.85226358,111060.0,111040.0,0.08249]
[1756835437804,0.85226358,111060.0,111040.0,0.45249]
[1756835438012,0.85226358,111060.0,111040.0,0.08249]
[1756835438207,0.86110989,111060.0,111040.0,0.41249]
[1756835438517,0.86110989,111060.0,111050.0,0.04652]
[1756835438910,0.86086989,111060.0,111050.0,0.09473]
[1756835440506,0.02742989,111060.0,111050.0,0.09473]
[1756835440707,0.86378989,111060.0,111050.0,0.43473]
[1756835441218,0.86382989,111060.0,111050.0,0.43473]
[1756835448612,0.02742989,111060.0,111050.0,0.43473]
[1756835453622,0.02742989,111060.0,111050.0,0.43573]
[1756835454624,0.02742989,111060.0,111050.0,0.43473]
[1756835454828,0.4874478,111060.0,111050.0,0.09473]
[1756835455218,0.4874478,111060.0,111050.0,0.41473]
[1756835455520,0.76357939,111060.0,111050.0,0.41473]
[1756835456227,1.62057471,111060.0,111050.0,0.41473]
[1756835456616,1.62057471,111060.0,111050.0,0.09473]
[1756835456821,1.62057471,111060.0,111050.0,0.47473]
[1756835457923,0.78601471,111060.0,111050.0,0.47473]
[1756835458124,1.62029471,111060.0,111050.0,0.47473]
[1756835458428,1.62029471,111060.0,111050.0,0.01]
[1756835458429,2.23836946,111060.0,111050.0,0.01]
[1756835458930,2.28687591,111060.0,111050.0,0.01]
[1756835459133,2.28719591,111060.0,111050.0,0.01]
[1756835459332,0.93289166,111060.0,111050.0,0.01]
[1756835459532,2.03711591,111060.0,111050.0,0.01]
[1756835459725,1.66900116,111060.0,111050.0,0.05594]
[1756835460122,0.83652116,111060.0,111050.0,0.01]
[1756835460326,1.67388116,111060.0,111050.0,0.01]
[1756835460528,2.04195591,111060.0,111050.0,0.01]
[1756835460727,0.93777166,111060.0,111050.0,0.09036]
[1756835461026,1.67440116,111060.0,111050.0,0.10415]
[1756835462132,1.30664641,111060.0,111050.0,0.47222475]
[1756835462331,1.25813996,111060.0,111050.0,0.47222475]
[1756835462533,1.62621471,111060.0,111050.0,0.10415]
[1756835462725,1.62893471,111060.0,111050.0,0.10415]
[1756835464125,0.42093996,111060.0,111050.0,0.47222475]
[1756835464330,0.89562521,111060.0,111050.0,0.46222475]
[1756835464533,1.26369996,111060.0,111050.0,0.77222475]
[1756835465237,1.26169996,111060.0,111050.0,0.77222475]
[1756835465739,0.89362521,111060.0,111050.0,0.77222475]
[1756835465940,1.26169996,111060.0,111050.0,0.77222475]
[1756835466128,0.0420189,111060.0,111050.0,1.4202995]
[1756835466334,0.0420189,111060.0,111050.0,1.05222475]
[1756835466536,0.0410189,111060.0,111050.0,1.05222475]
[1756835467430,0.02243532,111060.0,111050.0,1.4222995]
[1756835467738,0.02243532,111060.0,111050.0,1.5123424]
[1756835467944,0.02243532,111060.0,111050.0,1.52118989]
[1756835468139,1.20713077,111080.0,111050.0,1.52118989]
[1756835468345,1.22930521,111080.0,111070.0,0.41443475]
[1756835468542,0.02217444,111080.0,111070.0,0.7795374]
[1756835468845,0.02217444,111080.0,111070.0,1.39761215]
[1756835469230,0.67086333,111100.0,111080.0,0.03477]
[1756835469429,0.69301235,111100.0,111090.0,0.44920475]
[1756835469634,0.69301235,111100.0,111090.0,0.45920475]
[1756835469843,0.69301235,111100.0,111090.0,0.64920475]
[1756835470340,0.70183376,111100.0,111090.0,0.64920475]
[1756835470537,0.33375901,111100.0,111090.0,0.64920475]
[1756835470847,0.70183376,111100.0,111090.0,0.64920475]
[1756835471034,0.08955901,111100.0,111090.0,0.64920475]
[1756835471235,1.30047376,111100.0,111090.0,0.64920475]
[1756835471436,0.45763376,111100.0,111090.0,0.64920475]
[1756835471644,1.30139376,111100.0,111090.0,0.64920475]
[1756835472140,1.66946851,111100.0,111090.0,0.31696968]
[1756835472554,1.66946851,111100.0,111090.0,0.35173968]
[1756835472750,0.93331901,111100.0,111090.0,0.35173968]
[1756835472959,0.93331901,111100.0,111090.0,0.71981443]
[1756835473149,1.30139376,111100.0,111090.0,0.71981443]
[1756835473345,1.27924474,111100.0,111090.0,0.71981443]
[1756835473651,0.93310505,111100.0,111090.0,0.35173968]
[1756835474857,1.39284585,111100.0,111090.0,0.35173968]
[1756835475357,0.93242505,111100.0,111090.0,0.35173968]
[1756835475755,1.39216585,111100.0,111090.0,0.27060968]
[1756835475956,1.39216585,111100.0,111090.0,0.2]
[1756835475957,1.64216585,111100.0,111090.0,0.2]
[1756835478859,1.64216585,111100.0,111090.0,0.22363]
[1756835479061,0.80008585,111100.0,111090.0,0.24822]
[1756835479259,0.80008585,111100.0,111090.0,0.22363]
[1756835479458,1.64112585,111100.0,111090.0,0.22363]
[1756835480258,0.80008585,111100.0,111090.0,0.22363]
[1756835480462,1.64096585,111100.0,111090.0,0.28299]
[1756835481664,1.64096585,111100.0,111090.0,0.24822]
[1756835482264,1.64096585,111100.0,111090.0,0.22363]
[1756835482760,1.64096585,111100.0,111090.0,0.24822]
[1756835483763,1.39096585,111100.0,111090.0,0.2]
[1756835484564,1.64096585,111100.0,111090.0,0.2]
[1756835484955,0.80008585,111100.0,111090.0,0.2]
[1756835485468,0.80008585,111100.0,111090.0,0.28299]
[1756835485669,1.63992585,111100.0,111090.0,0.28299]
[1756835485869,1.38984585,111100.0,111090.0,0.28299]
[1756835486057,0.93010505,111100.0,111090.0,0.28299]
[1756835486256,1.38984585,111100.0,111090.0,0.28299]
[1756835487575,1.38984585,111100.0,111090.0,0.2]
[1756835487960,1.38984585,111100.0,111090.0,0.28299]
[1756835488561,0.09034505,111100.0,111090.0,0.28299]
[1756835488767,0.92982505,111100.0,111090.0,0.28299]
[1756835488968,0.92966505,111100.0,111090.0,0.28299]
[1756835490676,1.38940585,111100.0,111090.0,0.28299]
[1756835490972,0.92966505,111100.0,111090.0,0.28299]
[1756835491276,0.90772999,111100.0,111090.0,0.28299]
[1756835491476,0.92967882,111100.0,111090.0,0.28299]
[1756835491875,1.38941962,111100.0,111090.0,0.28299]
[1756835492773,1.38941962,111100.0,111090.0,0.24822]
[1756835492977,1.38941962,111100.0,111090.0,0.2]
[1756835493371,1.63941962,111100.0,111090.0,0.2]
[1756835493571,1.63941962,111100.0,111080.0,0.01971228]
[1756835493776,0.4597408,111090.0,111080.0,0.39971228]
[1756835493976,0.48168963,111090.0,111080.0,0.39971228]
[1756835494779,0.48168963,111090.0,111080.0,0.42334228]
[1756835495579,0.75780591,111090.0,111080.0,0.44793228]
[1756835495781,0.75780591,111090.0,111080.0,0.39971228]
[1756835496079,0.75780591,111090.0,111080.0,0.42334228]
[1756835496483,1.22831737,111090.0,111080.0,0.85063082]
[1756835496872,1.22831737,111090.0,111080.0,0.48270228]
[1756835497179,0.86038883,111090.0,111080.0,0.48270228]
[1756835497380,1.22831737,111090.0,111080.0,0.48270228]
[1756835497775,1.22831737,111090.0,111080.0,0.44793228]
[1756835497975,0.38987737,111090.0,111080.0,0.48270228]
[1756835498176,1.22799737,111090.0,111080.0,0.48270228]
[1756835498682,0.86006883,111090.0,111080.0,0.48270228]
[1756835498978,1.22799737,111090.0,111080.0,0.48270228]
[1756835499180,1.22803737,111090.0,111080.0,0.85063082]
[1756835500275,1.22803737,111090.0,111080.0,0.48270228]
[1756835500579,1.22803737,111090.0,111080.0,0.85063082]
[1756835501174,1.22803737,111090.0,111080.0,0.44793228]
[1756835501884,1.22843737,111090.0,111080.0,0.48291228]
[1756835502982,0.86450883,111090.0,111080.0,0.48291228]
[1756835503282,1.23243737,111090.0,111080.0,0.48291228]
[1756835503484,1.23238856,111090.0,111080.0,0.48291228]
[1756835504278,1.23238856,111090.0,111080.0,0.39971228]
[1756835504486,1.23238856,111090.0,111060.0,0.10595444]
[1756835504487,1.89877474,111090.0,111060.0,0.04682]
[1756835504672,0.73575946,111070.0,111060.0,0.31]
[1756835504875,1.61591806,111070.0,111060.0,0.31]
[1756835505076,1.24803833,111070.0,111060.0,0.31]
[1756835505278,1.24811833,111070.0,111060.0,0.35682]
[1756835505484,1.24811833,111070.0,111060.0,0.3918]
[1756835506075,1.24811833,111070.0,111060.0,0.35682]
[1756835506782,1.24811833,111070.0,111060.0,0.3918]
[1756835507084,1.24811833,111070.0,111060.0,0.35682]
[1756835507676,0.8802386,111070.0,111060.0,0.35682]
[1756835507876,1.86599806,111070.0,111060.0,0.02]
[1756835508286,1.93973139,111070.0,111060.0,0.02]
[1756835508978,1.93973139,111070.0,111040.0,0.03498]
[1756835509284,0.36787973,111050.0,111040.0,0.4518]
[1756835509486,1.20679973,111050.0,111040.0,0.4518]
[1756835509680,0.83892,111050.0,111040.0,0.4518]
[1756835509983,0.36787973,111050.0,111040.0,0.4518]
[1756835510184,0.36787973,111060.0,111050.0,0.06145]
[1756835510372,1.21445179,111060.0,111050.0,0.36643]
[1756835510988,0.38985179,111060.0,111050.0,0.36643]
[1756835511190,1.22885179,111060.0,111050.0,0.36643]
[1756835511386,0.38985179,111060.0,111050.0,0.36643]
[1756835511579,1.22885179,111060.0,111050.0,0.36643]
[1756835513180,1.59673152,111060.0,111050.0,0.31682]
[1756835513787,1.22889179,111060.0,111050.0,0.31682]
[1756835513985,1.22889179,111060.0,111050.0,0.3518]
[1756835514480,1.22889179,111060.0,111050.0,0.27]
[1756835514481,1.59677152,111060.0,111050.0,0.27]
[1756835514688,1.84677152,111060.0,111030.0,0.0818]
[1756835514988,0.36787973,111040.0,111030.0,0.3518]
[1756835515289,1.20691973,111040.0,111030.0,0.3518]
[1756835515590,1.21610821,111040.0,111030.0,0.3518]
[1756835515789,1.21610821,111040.0,111030.0,0.3548]
[1756835516085,0.84798848,111040.0,111030.0,0.3568]
[1756835516680,0.84798848,111040.0,111030.0,0.3548]
[1756835516893,0.84798848,111040.0,111030.0,0.3568]
[1756835517187,1.21586821,111040.0,111030.0,0.3568]
[1756835517889,0.37706821,111040.0,111030.0,0.3568]
[1756835518093,1.21586821,111040.0,111030.0,0.3568]
[1756835520094,1.21586821,111040.0,111030.0,0.32182]
[1756835520284,1.87391788,111040.0,111030.0,0.005]
[1756835520594,1.03511788,111040.0,111030.0,0.005]
[1756835520785,1.87379788,111040.0,111030.0,0.005]
[1756835520995,1.03511788,111040.0,111030.0,0.005]
[1756835521186,1.87375788,111040.0,111030.0,0.005]
[1756835521692,1.87367788,111040.0,111030.0,0.005]
[1756835521895,1.50579815,111040.0,111030.0,0.005]
[1756835522084,1.03511788,111040.0,111030.0,0.005]
[1756835522284,0.41723815,111040.0,111030.0,0.02768]
[1756835522497,0.88815842,111040.0,111030.0,0.0868]
[1756835522694,0.41723815,111040.0,111030.0,0.0868]
[1756835522990,0.73106848,111040.0,111030.0,0.70467973]
[1756835523197,0.36787973,111050.0,111030.0,0.70467973]
[1756835523387,0.02193072,111050.0,111040.0,0.0818]
[1756835523592,0.49112,111050.0,111040.0,0.0818]
[1756835523992,0.50017164,111050.0,111040.0,0.0818]
[1756835524500,0.50017164,111050.0,111040.0,0.0828]
[1756835525096,0.84777164,111050.0,111040.0,0.0828]
[1756835525489,1.30483742,111050.0,111040.0,0.0828]
[1756835525685,1.30483742,111050.0,111040.0,0.04782]
[1756835525890,1.32677009,111050.0,111040.0,0.002]
[1756835526092,1.57677009,111050.0,111040.0,0.002]
[1756835526301,1.55483742,111050.0,111040.0,0.002]
[1756835528090,1.57677309,111050.0,111040.0,0.002]
[1756835528697,1.58677309,111050.0,111040.0,0.002]
[1756835529798,1.58677309,111050.0,111010.0,0.08494]
[1756835529990,1.76280712,111040.0,111010.0,0.14]
[1756835530296,1.76280712,111040.0,110990.0,0.10503899]
[1756835530297,0.45706578,111020.0,110990.0,0.10503899]
[1756835530498,0.45706578,111000.0,110990.0,0.01]
[1756835531095,0.45206578,111000.0,110980.0,0.08494]
[1756835531292,1.29582578,110990.0,110980.0,0.08784]
[1756835531498,1.29182578,110990.0,110980.0,0.08784]
[1756835531705,1.29182578,110990.0,110980.0,0.12494]
[1756835531898,1.29182578,110990.0,110980.0,0.33784]
[1756835532196,0.83876,110990.0,110980.0,0.33884]
[1756835532403,1.29582578,110990.0,110980.0,0.37694]
[1756835533092,1.29582578,110990.0,110980.0,0.33594]
[1756835533299,1.29582578,110990.0,110980.0,0.001]
[1756835533598,1.32311696,110990.0,110980.0,0.001]
[1756835533999,1.32511696,110990.0,110960.0,0.04345468]
[1756835534195,1.29546578,110980.0,110970.0,0.08474]
[1756835534798,0.8384,110980.0,110970.0,0.08474]
[1756835535702,0.84232,110980.0,110970.0,0.08474]
[1756835535891,0.84332,110980.0,110970.0,0.08474]
[1756835536494,0.005,110980.0,110970.0,0.08474]
[1756835536700,0.84328,110980.0,110970.0,0.08474]
[1756835537204,0.843,110980.0,110970.0,0.08474]
[1756835538005,0.005,110980.0,110970.0,0.08474]
[1756835538201,0.84292,110980.0,110970.0,0.08474]
[1756835538905,0.8428,110980.0,110970.0,0.08474]
[1756835539106,0.84272,110980.0,110970.0,0.08474]
[1756835539404,0.005,110980.0,110970.0,0.08474]
[1756835539593,0.49544,110980.0,110970.0,0.16474]
[1756835540110,0.005,110980.0,110970.0,0.16474]
[1756835540300,0.84292,110980.0,110970.0,0.16474]
[1756835540705,0.84272,110980.0,110970.0,0.41474]
[1756835540900,0.84272,110980.0,110970.0,0.65474]
[1756835540901,0.84404,110980.0,110970.0,0.65474]
[1756835541301,0.005,110980.0,110970.0,0.65474]
[1756835541502,0.005,110980.0,110970.0,1.11180578]
[1756835541708,0.005,110980.0,110970.0,0.91180578]
[1756835541906,0.005,110980.0,110970.0,0.44474]
[1756835542108,0.005,110980.0,110970.0,0.71474]
[1756835542609,0.005,110980.0,110970.0,0.33474]
[1756835542807,0.005,110980.0,110970.0,0.68474]
[1756835543004,0.005,110980.0,110970.0,0.33474]
[1756835543204,0.005,110980.0,110970.0,0.18474]
[1756835543710,0.004,110980.0,110970.0,0.79180578]
[1756835543910,0.004,110980.0,110970.0,0.92180578]
[1756835544110,0.004,110980.0,110970.0,1.16180578]
[1756835544411,0.005,110980.0,110970.0,0.47474]
[1756835544610,0.005,110980.0,110970.0,0.46474]
[1756835544810,0.005,110980.0,110970.0,0.45474]
[1756835545010,0.005,110980.0,110970.0,0.47474]
[1756835545214,0.005,110980.0,110970.0,0.70474]
[1756835546201,0.005,110980.0,110970.0,0.33474]
[1756835546410,0.005,110980.0,110970.0,0.45474]
[1756835546909,0.005,110980.0,110970.0,0.33474]
[1756835547107,0.005,110980.0,110970.0,0.46474]
[1756835547808,0.005,110980.0,110970.0,0.21474]
[1756835547999,0.004,110980.0,110970.0,0.21474]
[1756835548204,0.004,110980.0,110970.0,0.42474]
[1756835549312,0.004,110980.0,110970.0,0.08474]
[1756835549503,0.004,110980.0,110970.0,0.18474]
[1756835549997,0.005,110980.0,110970.0,0.18474]
[1756835551019,0.005,110980.0,110970.0,0.44474]
[1756835551509,0.005,110980.0,110970.0,0.90180578]
[1756835551810,0.005,110980.0,110970.0,0.44474]
[1756835552208,0.005,110980.0,110970.0,1.15180578]
[1756835553405,0.001,110980.0,110970.0,1.15180578]
[1756835553606,0.003,110980.0,110970.0,1.15180578]
[1756835553811,0.002,110980.0,110970.0,1.15180578]
[1756835555308,0.002,110980.0,110970.0,1.24191358]
[1756835555614,0.002,110980.0,110970.0,1.15180578]
[1756835555810,0.002,110980.0,110970.0,1.98948578]
[1756835556117,0.002,110980.0,110970.0,1.15180578]
[1756835556411,0.002,110980.0,110970.0,1.98936578]
[1756835556912,0.002,110980.0,110970.0,1.99024578]
[1756835557112,0.002,110980.0,110970.0,2.08035358]
[1756835557812,0.002,110980.0,110970.0,1.98924578]
[1756835558314,0.002,110980.0,110970.0,2.07935358]
[1756835559715,0.002,110980.0,110970.0,1.24291358]
[1756835560114,0.002,110980.0,110970.0,1.98968578]
[1756835560316,0.002,110980.0,110970.0,0.44574]
[1756835560516,0.25,110980.0,110970.0,0.25574]
[1756835560715,0.27203342,110980.0,110970.0,0.25574]
[1756835560916,0.27203342,110980.0,110970.0,0.46574]
[1756835561105,0.27203342,110980.0,110970.0,0.20574]
[1756835561513,0.27203342,110980.0,110970.0,0.19574]
[1756835561717,0.27403342,110980.0,110970.0,0.19574]
[1756835562015,0.27403342,110980.0,110970.0,0.08574]
[1756835562218,0.27403342,110980.0,110970.0,0.39474]
[1756835562415,0.27403342,110980.0,110970.0,0.19474]
[1756835563206,0.27503342,110980.0,110970.0,0.08474]
[1756835563412,0.27603342,110980.0,110970.0,0.20474]
[1756835563719,0.27603342,110980.0,110970.0,0.44474]
[1756835564121,0.27603342,110980.0,110970.0,0.16474]
[1756835564320,0.27603342,110980.0,110970.0,0.45474]
[1756835564819,0.27603342,110980.0,110970.0,0.42474]
[1756835565021,0.27603342,110980.0,110970.0,0.18474]
[1756835565218,0.02603342,110980.0,110970.0,1.36191358]
[1756835565426,0.004,110980.0,110970.0,1.36191358]
[1756835565615,0.05760024,111000.0,110970.0,1.32808848]
[1756835565616,0.04848,111000.0,110970.0,1.32808848]
[1756835565814,0.04848,111000.0,110990.0,0.46034068]
[1756835565815,0.11813387,111000.0,110990.0,0.46034068]
[1756835566118,0.11813387,111000.0,110990.0,0.99034068]
[1756835566415,0.0961,111000.0,110990.0,0.61034068]
[1756835566615,0.0961,111000.0,110990.0,0.63034068]
[1756835566819,0.0961,111000.0,110990.0,0.96034068]
[1756835567022,0.0961,111000.0,110990.0,0.5]
[1756835567215,0.0961,111000.0,110990.0,0.96034068]
[1756835567416,0.0991,111000.0,110990.0,0.96034068]
[1756835568221,0.003,111000.0,110990.0,0.96034068]
[1756835568421,0.004,111000.0,110990.0,0.75]
[1756835568724,0.0825,111030.0,111000.0,0.0900815]
[1756835568923,0.02819,111040.0,111030.0,0.08407]
[1756835569124,0.02819,111040.0,111030.0,0.53157]
[1756835569427,0.02819,111040.0,111030.0,0.99191068]
[1756835569617,0.02819,111040.0,111030.0,0.53157]
[1756835569817,0.02819,111040.0,111030.0,0.99191068]
[1756835570214,0.02819,111040.0,111030.0,0.53157]
[1756835570418,0.02819,111040.0,111030.0,0.99191068]
[1756835571225,0.02819,111040.0,111030.0,1.86871068]
[1756835571425,0.02819,111040.0,111030.0,2.11971068]
[1756835572131,0.02819,111040.0,111030.0,2.21176968]
[1756835572323,0.02819,111040.0,111030.0,2.21276968]
[1756835572920,0.02819,111040.0,111030.0,2.12271068]
[1756835573127,0.02819,111040.0,111030.0,2.19472582]
[1756835573527,0.02819,111040.0,111030.0,2.19172582]
[1756835573718,0.02819,111040.0,111030.0,2.21904582]
[1756835573933,0.02819,111040.0,111030.0,2.7694456]
[1756835574230,0.0126606,111040.0,111030.0,2.7694456]
[1756835574632,1.8279,111080.0,111070.0,0.08407]
[1756835575222,1.8279,111080.0,111070.0,0.04843]
[1756835575533,1.8279,111080.0,111060.0,0.05549234]
[1756835575534,0.0825,111070.0,111060.0,0.10392234]
[1756835575728,0.0825,111070.0,111060.0,0.17142234]
[1756835577431,0.0845,111070.0,111060.0,0.17142234]
[1756835578133,0.0865,111070.0,111060.0,0.17142234]
[1756835578328,0.0865,111070.0,111060.0,0.63176302]
[1756835579135,0.0865,111070.0,111060.0,0.17142234]
[1756835579329,0.004,111070.0,111060.0,0.56426302]
[1756835579637,0.05162,111070.0,111060.0,0.90426302]
[1756835579837,0.0865,111070.0,111060.0,0.90426302]
[1756835580336,0.004,111070.0,111060.0,0.90426302]
[1756835580533,0.05162,111070.0,111060.0,0.90426302]
[1756835581052,0.0865,111070.0,111060.0,0.87426302]
[1756835582039,0.0865,111070.0,111060.0,0.56426302]
[1756835582231,0.0865,111070.0,111060.0,0.17142234]
[1756835582630,0.0865,111070.0,111060.0,0.63176302]
[1756835585239,0.0865,111070.0,111060.0,0.17142234]
[1756835585534,0.004,111070.0,111060.0,1.00176302]
[1756835585742,0.004,111070.0,111060.0,0.54142234]
[1756835586241,0.004,111070.0,111060.0,1.00176302]
[1756835588041,0.004,111070.0,111060.0,0.54142234]
[1756835588241,0.004,111070.0,111060.0,1.00176302]
[1756835590431,0.004,111070.0,111060.0,1.25176302]
[1756835590638,0.004,111070.0,111060.0,2.16532302]
[1756835591136,0.004,111070.0,111060.0,2.25535772]
[1756835593544,0.004,111070.0,111060.0,1.79501704]
[1756835593843,0.004,111070.0,111060.0,1.25176302]
[1756835594040,0.004,111070.0,111060.0,2.16444302]
[1756835594539,0.004,111070.0,111060.0,2.25447762]
[1756835594737,0.004,111070.0,111060.0,1.25176302]
[1756835595042,0.004,111070.0,111060.0,1.00176302]
[1756835595243,0.004,111070.0,111060.0,1.91324302]
[1756835596433,0.004,111070.0,111060.0,1.00176302]
[1756835596635,0.0384,111070.0,111060.0,1.00176302]
[1756835596940,0.33552,111070.0,111060.0,1.00176302]